[Event "1st Serbian League 2022"]
[Site "Vrnjacka Banja"]
[Date "2022.09.27"]
[Round "8.4"]
[White "Pap, Misa"]
[Black "Solak, Dragan"]
[Result "1-0"]
[ECO "B15"]
[WhiteElo "2381"]
[BlackElo "2592"]
[Annotator "TA"]
[PlyCount "121"]
[EventDate "2022.09.20"]
[EventType "team-tourn"]
[EventCountry "SRB"]
[SourceTitle "playchess.com"]
[Source "ChessBase"]
[SourceQuality "1"]
[TimeControl "40/5400+30:1800+30"]

{[%evp 18,121,32,41,40,14,29,0,0,0,4,11,18,0,11,18,21,24,22,0,0,0,0,0,0,0,12,9,10,0,0,0,0,0,0,0,0,-51,0,0,0,0,19,0,0,0,0,0,0,0,19,0,9,8,36,41,30,28,28,25,88,75,95,80,99,90,132,132,293,72,72,72,75,77,237,220,195,189,177,179,220,0,163,162,434,434,436,417,391,389,372,17,360,360,321,295,1454,1418,1331,1245,29959,29964,29967,12065,29958,6079]} 1. e4 {[%emt 0:00:04]} c6 {[%emt 0:00:20]} 2. d4 {[%emt 0:00:43]} d5 {[%emt 0:00:06]} 3. Nd2 {[%emt 0:00:06]} dxe4 {[%emt 0:00:08]} 4. Nxe4 {[%emt 0:00:07]} Nf6 {[%emt 0:00:12]} 5. Nxf6+ {[%emt 0:00:08]} exf6 {[%emt 0:00:04]} 6. c3 {[%emt 0:00:18]} Bd6 {[%emt 0:00:07]} 7. Bd3 {[%emt 0:00:16]} O-O {[%emt 0:00:07]} 8. Qc2 {[%emt 0:00:05]} Re8+ {[%emt 0:00:52]} 9. Ne2 {[%emt 0:00:06]} h6 {[%emt 0:00:48]} 10. O-O {[%emt 0:00:51]} Nd7 {[%emt 0:00:12] now scores much better than the old 10...Qc7. B15: Caro-Kann: 3 Nc3: 3...g6 and 3...dxe4 4 Nxe4 Nf6 5 Nxf6+ exf6.} 11. Ng3 {[%emt 0:09:38]} Nf8 {[%emt 0:00:29]} 12. Nf5 {[%emt 0:04:00]} Bxf5 {[%emt 0:00:07] The position is equal.} 13. Bxf5 {[%emt 0:00:09] [#]} g6 $146 {[%emt 0:01:57]} ({Predecessor:} 13... Bc7 14. g3 Qd5 15. Bh3 Qh5 16. Bg2 Re2 17. Qd3 Re7 18. Bf3 Qg6 19. Qxg6 Nxg6 {½-½ (47) Terletsky,O (2289)-Villca,J (2297) Chess.com INT 2018}) 14. Bd3 {[%emt 0:01:13]} f5 {[%emt 0:02:31]} 15. g3 {[%emt 0:04:41]} h5 {[%emt 0:14:46]} 16. Bd2 {[%emt 0:01:15]} f4 {[%emt 0:08:22]} 17. Rae1 {[%emt 0:03:15]} Qd7 {[%emt 0:05:22][%cal Oh5h4]} 18. Qd1 {[%emt 0:14:52]} Ne6 {[%emt 0:11:17]} 19. Be4 {[%emt 0:10:48]} Ng5 {[%emt 0:04:13]} 20. Bg2 {[%emt 0:00:48]} Qf5 {[%emt 0:13:27] And now ...f3 would win.} 21. Qc1 {[%emt 0:04:17][%cal Rd2f4]} Ne6 {[%emt 0:02:55]} 22. Qb1 {[%emt 0:09:07]} Qf6 {[%emt 0:04:53]} 23. Qc1 {[%emt 0:12:06]} Qf5 {[%emt 0:08:56]} 24. Qb1 {[%emt 0:00:39]} Qf6 {[%emt 0:00:04]} 25. Qc1 {[%emt 0:00:11]} h4 {[%emt 0:05:40]} 26. Bh3 {[%emt 0:04:47]} Ng5 {[%emt 0:03:46]} 27. Bg2 {[%emt 0:03:22]} (27. Bg4 $11) 27... h3 {[%emt 0:03:13]} (27... Rxe1 $1 $15 28. Qxe1 (28. Rxe1 fxg3 29. fxg3 Nf3+ 30. Bxf3 Qxf3 $15) 28... Kg7) 28. Bh1 $11 {[%emt 0:00:14]} Rxe1 {[%emt 0:02:24]} 29. Qxe1 {[%emt 0:00:45]} Kf8 {[%emt 0:00:47]} 30. Qd1 {[%emt 0:04:54]} Qf5 {[%emt 0:00:37]} 31. Qb1 {[%emt 0:00:14]} Qg4 {[%emt 0:01:28] ( -> ...Nf3+)} 32. Qd1 {[%emt 0:00:02] Against Nf3+} Qf5 {[%emt 0:00:26]} 33. Qb1 {[%emt 0:00:02]} Qf6 {[%emt 0:02:01]} (33... Qg4 $5 {[%cal Rg5f3]} 34. Qd3 fxg3 35. hxg3 (35. fxg3 Re8 $11) 35... h2+ 36. Kxh2 Kg7 $14) 34. Qd1 {[%emt 0:00:11]} Re8 {[%emt 0:01:56]} 35. Qg4 {[%emt 0:01:18]} Qf5 {[%emt 0:00:44]} 36. Qxf5 {[%emt 0:00:22]} gxf5 {[%emt 0:00:02]} 37. Re1 {[%emt 0:03:47]} Rxe1+ {[%emt 0:00:58]} 38. Bxe1 {[%emt 0:01:27][%mdl 4096] Endgame KBB-KBN} f3 {[%emt 0:02:11]} (38... Ne4 $11 {keeps the balance.}) 39. Bd2 $16 {[%emt 0:00:28]} f6 {[%emt 0:00:20]} 40. Kf1 {[%emt 0:01:04]} Kf7 {[%emt 0:00:28]} 41. Ke1 {[%emt 0:31:16]} Ke6 {[%emt 0:09:18]} 42. Bf4 {[%emt 0:00:00]} c5 $2 {[%emt 0:03:19]} (42... Be7 $16 {is a better defense.}) 43. Kd2 $2 {[%emt 0:00:00]} (43. Bxd6 $1 $18 {and the rest is easy.} Kxd6 44. Kd2) 43... cxd4 {[%emt 0:00:06]} 44. cxd4 {[%emt 0:00:00] aiming for Bxd6.} Bb4+ {[%emt 0:12:56]} 45. Ke3 {[%emt 0:00:00]} a6 $2 {[%emt 0:00:22]} (45... Ba5 $16) 46. Bxf3 $18 {[%emt 0:00:00]} Nxf3 {[%emt 0:01:41]} 47. Kxf3 {[%emt 0:00:00] KB-KB} Kd5 {[%emt 0:00:10]} 48. Bc7 {[%emt 0:00:40] Kf4 is the strong threat.} Bd2 {[%emt 0:01:10]} 49. Bf4 $2 {[%emt 0:02:29]} (49. Bb6 $18) 49... Ba5 $2 {[%emt 0:00:24] [#]} (49... Bb4 $1 $11) 50. g4 $1 {[%emt 0:02:15]} Kxd4 $2 {[%emt 0:00:39]} (50... fxg4+ 51. Kxg4 Bb6) 51. gxf5 {[%emt 0:00:01] Hoping for Kg4.} Kd3 {[%emt 0:00:29]} 52. Bd6 {[%emt 0:01:29]} Bb6 {[%emt 0:01:40]} 53. b4 {[%emt 0:01:12]} Bd4 {[%emt 0:04:26]} 54. a4 {[%emt 0:00:36]} ({White should play} 54. Kg4 $18) 54... Kc4 $2 {[%emt 0:00:33][%mdl 8192] [#]} (54... b5 $1 $11 {and Black has nothing to worry.} 55. axb5 axb5) 55. Kg4 $1 {[%emt 0:00:14]} Bc3 {[%emt 0:00:27]} 56. Be7 {[%emt 0:02:03]} ({Don't play} 56. Kxh3 b5 57. axb5 Kxb5 $18) 56... Kb3 $2 {[%emt 0:00:41]} (56... Bxb4 57. Bxf6 Bc5 58. Kxh3 b5 59. axb5 axb5) 57. a5 {[%emt 0:00:26]} Bxb4 {[%emt 0:00:18]} 58. Bxf6 {[%emt 0:00:03]} Bxa5 {[%emt 0:01:00]} 59. Be7 {[%emt 0:00:02]} Bc7 {[%emt 0:00:23]} 60. f6 {[%emt 0:00:11][%cal Bf5f6,Bf6f7][%mdl 32] White wants to mate with f7.} Bxh2 {[%emt 0:00:27]} 61. f7 {[%emt 0:00:23] Weighted Error Value: White=0.30/Black=0.53} 1-0

[Event "1st Serbian League 2022"]
[Site "Vrnjacka Banja"]
[Date "2022.09.27"]
[Round "8.5"]
[White "Kovacevic, Aleksandar"]
[Black "Savic, Miodrag R"]
[Result "1/2-1/2"]
[ECO "C42"]
[WhiteElo "2471"]
[BlackElo "2406"]
[Annotator "TA"]
[PlyCount "39"]
[EventDate "2022.09.20"]
[EventType "team-tourn"]
[EventCountry "SRB"]
[SourceTitle "playchess.com"]
[Source "ChessBase"]
[SourceQuality "1"]
[TimeControl "40/5400+30:1800+30"]

{[%evp 21,39,31,24,37,58,66,47,47,65,57,47,44,49,62,81,34,26,37,36,0]} 1. e4 {[%emt 0:00:11]} e5 {[%emt 0:00:10]} 2. Nf3 {[%emt 0:00:12]} Nf6 {[%emt 0:00:32]} 3. Nxe5 {[%emt 0:00:19]} d6 {[%emt 0:00:09][%cal Bd7d6,Bd6d5][%mdl 32]} 4. Nf3 {[%emt 0:00:05]} Nxe4 {[%emt 0:00:09]} 5. d4 {[%emt 0:00:40]} d5 {[%emt 0:00:10]} 6. Bd3 {[%emt 0:00:10]} Be7 {[%emt 0:02:00]} 7. O-O {[%emt 0:00:24]} Nc6 {[%emt 0:00:35]} 8. c4 {[%emt 0:00:18]} Nb4 {[%emt 0:00:19]} 9. Be2 {[%emt 0:00:16][%cal Bd3e2,Be2c4,Bc4b3,Bb3c2][%mdl 32]} dxc4 {[%emt 0:00:43]} 10. Bxc4 {[%emt 0:01:13]} O-O {[%emt 0:00:25]} 11. Nc3 {[%emt 0:01:21]} Nd6 {[%emt 0:00:09]} 12. Bb3 {[%emt 0:01:16] C42: Petroff Defence: 3 Nxe5 and unusual White 3rd moves.} Bg4 {[%emt 0:02:41]} 13. h3 {[%emt 0:01:38]} Bxf3 {[%emt 0:02:43]} 14. Qxf3 {[%emt 0:00:18]} Nc6 {[%emt 0:00:31]} 15. Rd1 {[%emt 0:09:30]} Bf6 {[%emt 0:16:52]} 16. Be3 {[%emt 0:11:32] [#]} Na5 $146 {[%emt 0:16:10]} ({Predecessor:} 16... g6 17. Nd5 Bg7 18. Qg3 Nf5 19. Qxc7 Ncxd4 20. Bxd4 Nxd4 21. Qxb7 Qg5 22. Qe7 Qxe7 23. Nxe7+ {½-½ (30) Ehs,D (2080)-Penz,H (2308) Austria 2018}) 17. Bc2 {[%emt 0:12:11]} g6 {[%emt 0:18:18] Against Qh5} 18. Nd5 {[%emt 0:05:36] White is much more active.} (18. Ne4 $16 Bh4 19. Nxd6 cxd6 20. Be4) 18... Bg7 $14 {[%emt 0:00:50]} 19. b3 {[%emt 0:13:28] Against Nac4} Nc6 {[%emt 0:00:19] [#] ...Nb5 is the strong threat.} 20. Nc3 {[%emt 0:01:07] Inhibits Nb5.  Weighted Error Value: White=0.07 (flawless) /Black=0.04 (flawless)} 1/2-1/2

[Event "1st Serbian League 2022"]
[Site "Vrnjacka Banja"]
[Date "2022.09.27"]
[Round "8.6"]
[White "Radovanovic, Mihajlo"]
[Black "Brenjo, Slavisa"]
[Result "1-0"]
[ECO "E97"]
[WhiteElo "2438"]
[BlackElo "2409"]
[Annotator "TA"]
[PlyCount "59"]
[EventDate "2022.09.20"]
[EventType "team-tourn"]
[EventCountry "SRB"]
[SourceTitle "playchess.com"]
[Source "ChessBase"]
[SourceQuality "1"]
[TimeControl "40/5400+30:1800+30"]

{[%evp 27,59,64,65,59,66,64,95,96,104,90,110,113,113,95,133,125,173,154,128,141,148,147,138,145,143,185,198,167,320,322,331,279,321,277]} 1. Nf3 {[%emt 0:00:06]} Nf6 {[%emt 0:00:23]} 2. c4 {[%emt 0:00:25]} g6 {[%emt 0:00:12]} 3. Nc3 {[%emt 0:00:12]} Bg7 {[%emt 0:00:08]} 4. e4 {[%emt 0:00:15]} d6 {[%emt 0:00:08]} 5. d4 {[%emt 0:00:04][%cal Bd2d4,Bd4d5][%mdl 32]} O-O {[%emt 0:00:08]} 6. Be2 {[%emt 0:00:23]} e5 {[%emt 0:00:30]} 7. O-O {[%emt 0:00:08]} Nc6 {[%emt 0:00:22]} 8. d5 {[%emt 0:00:08]} Ne7 {[%emt 0:00:08]} 9. b4 {[%emt 0:00:05]} Nh5 {[%emt 0:01:11]} 10. Re1 {[%emt 0:00:27]} Nf4 {[%emt 0:05:01]} 11. Bf1 {[%emt 0:00:18]} a5 {[%emt 0:02:05]} 12. bxa5 {[%emt 0:00:56]} c5 {[%emt 0:00:18]} 13. Nd2 {[%emt 0:04:23]} Rxa5 {[%emt 0:00:50]} 14. a4 {[%emt 0:00:18]} Ra6 {[%emt 0:00:29]} 15. Ra3 {[%emt 0:01:32] E97: King's Indian: Classical Main Line (6...e5 7 0-0 Nc6): 8 Be3 and 8 d5 Ne7, not 9 Ne1.} h6 {[%emt 0:04:58]} 16. Nb5 {[%emt 0:03:43]} g5 {[%emt 0:20:22]} 17. g3 {[%emt 0:03:02] White is better.} Nfg6 {[%emt 0:00:24]} (17... Nh3+ $2 18. Bxh3 Bxh3 19. g4 $18) 18. Be2 {[%emt 0:06:28]} f5 {[%emt 0:00:52] [#]} 19. exf5 $1 {[%emt 0:00:15]} Nxf5 {[%emt 0:00:54] [#]} 20. Bh5 $1 {[%emt 0:12:53] [#]} Nh8 $146 {[%emt 0:13:32]} ({Predecessor:} 20... Nge7 21. Bg4 Nd4 22. Bxc8 Qxc8 23. Bb2 Nef5 24. Ne4 Qd7 25. Bxd4 Nxd4 26. f3 Rf7 27. Kg2 Bf8 28. h3 Nf5 29. Qd2 {½-½ (29) Antic,D (2504)-Brenjo,S (2522) Vrnjacka Banja 2010}) 21. Rf3 {[%emt 0:03:09]} Nd4 {[%emt 0:04:30]} (21... Bf6 $16) 22. Nxd4 $18 {[%emt 0:07:04]} cxd4 {[%emt 0:00:21]} 23. Ne4 {[%emt 0:06:14]} Rxf3 {[%emt 0:01:51]} 24. Qxf3 {[%emt 0:00:07]} Rxa4 {[%emt 0:02:25]} 25. Ba3 {[%emt 0:03:48]} g4 {[%emt 0:24:41]} 26. Qb3 {[%emt 0:00:45] White is much more active.} Qa5 {[%emt 0:00:37]} 27. Ra1 {[%emt 0:00:34] aiming for Be8.} Bf8 $2 {[%emt 0:06:14]} (27... Bf5) 28. Be8 {[%emt 0:01:04][%mdl 64] Trapped Piece. White has a decisive advantage.} Rxa3 {[%emt 0:01:17]} 29. Qxa3 {[%emt 0:00:07]} ({Don't do} 29. Nf6+ Kg7 30. Qxa3 Qd8) 29... Qxa3 {[%emt 0:00:40]} 30. Rxa3 {[%emt 0:00:06] Weighted Error Value: White=0.02 (flawless) /Black=0.25 (precise)} 1-0

[Event "1st Serbian League 2022"]
[Site "Vrnjacka Banja"]
[Date "2022.09.27"]
[Round "8.7"]
[White "Krstulovic, Alex"]
[Black "Tadic, Stefan"]
[Result "1/2-1/2"]
[ECO "D13"]
[WhiteElo "2411"]
[BlackElo "2318"]
[Annotator "TA"]
[PlyCount "63"]
[EventDate "2022.09.20"]
[EventType "team-tourn"]
[EventCountry "SRB"]
[SourceTitle "playchess.com"]
[Source "ChessBase"]
[SourceQuality "1"]
[TimeControl "40/5400+30:1800+30"]

{[%evp 15,63,22,20,29,45,43,29,45,36,43,58,46,42,56,80,86,79,53,44,20,19,20,20,23,21,0,51,30,110,110,156,114,152,139,141,115,108,0,0,0,0,0,0,0,0,0,0,0,0,0]} 1. d4 {[%emt 1:31:00]} d5 {[%emt 0:00:35]} 2. c4 {[%emt 0:00:00]} c6 {[%emt 0:00:39]} 3. cxd5 {[%emt 0:00:00]} cxd5 {[%emt 0:00:06]} 4. Bf4 {[%emt 0:00:00]} Nf6 {[%emt 0:01:04]} 5. Nc3 {[%emt 0:00:00]} Nc6 {[%emt 0:01:00]} 6. e3 {[%emt 0:00:00]} a6 {[%emt 0:03:54]} 7. Be2 {[%emt 0:00:00]} Bf5 {[%emt 0:05:57]} 8. Nf3 {[%emt 0:00:00]} e6 {[%emt 0:05:27]} 9. Qb3 {[%emt 0:00:00] D13: Slav Defence: Exchange variation without ...Bf5.} Bd6 {[%emt 0:09:23]} 10. Bxd6 {[%emt 0:00:00]} (10. Qxb7 Na5 11. Qxa8 Qxa8 $15) 10... Qxd6 {[%emt 0:00:07]} 11. Qxb7 {[%emt 0:00:00] White has an edge.} O-O {[%emt 0:05:25][%cal Bh8f8,Bf8b8,Bb8b2][%mdl 32]} (11... Rb8 12. Qxa6 O-O 13. O-O $16) 12. Qb3 {[%emt 0:00:00]} ({Wrong is} 12. Bxa6 $2 Rab8 13. Qb5 Rxb5 14. Bxb5 Na7 $19) 12... Rfb8 {[%emt 0:18:28]} 13. Qa3 {[%emt 0:00:00]} Qxa3 {[%emt 0:00:10]} 14. bxa3 {[%emt 0:00:00]} h6 {[%emt 0:00:07]} 15. O-O {[%emt 0:00:00]} Rb2 {[%emt 0:03:36]} 16. Rfe1 {[%emt 0:00:00]} Bc2 {[%emt 0:06:10] [#] Prevents Na4.} 17. Rec1 $146 {[%emt 0:00:00]} ({Predecessor:} 17. Bd1 Rab8 18. Rc1 Bxd1 19. Nxd1 R2b6 20. Nc3 Na5 21. Na4 Rb5 22. Ne5 Ne4 23. h4 {½-½ (47) Gridnev,S (1983)-Afonasieva,A (2152) Olginka 2022}) 17... Ne4 $1 {[%emt 0:03:50]} 18. Nxe4 {[%emt 0:00:00]} dxe4 {[%emt 0:02:20]} 19. Nd2 {[%emt 0:00:00] [#] And now Nc4 would win.} Na5 {[%emt 0:06:40]} 20. Kf1 {[%emt 0:00:00]} Rd8 {[%emt 0:01:23]} ({Don't do} 20... Bd3 21. Bxd3 exd3 22. Ne4 $16) ({Black should try} 20... e5 $11) 21. Bd1 {[%emt 0:00:00]} ({Much worse is} 21. Bxa6 e5 $11) 21... Bd3+ {[%emt 0:05:31]} (21... Bxd1 $1 $11 {keeps the balance.} 22. Rxd1 f5) 22. Ke1 $16 {[%emt 0:00:00]} e5 {[%emt 0:01:35]} (22... Kf8 $142) 23. Rc5 {[%emt 0:00:00]} exd4 {[%emt 0:00:06]} 24. Rxa5 {[%emt 0:00:00] [#] Threatens to win with Rc1.} dxe3 {[%emt 0:00:08]} 25. fxe3 {[%emt 0:00:16] Rc1 is the strong threat.} Bb5 {[%emt 0:00:06]} 26. a4 {[%emt 0:07:45]} ({White has to play} 26. Nxe4 $16 {Strongly threatening a4.} Rxg2 27. a4) 26... Rdxd2 $11 {[%emt 0:02:27] The position is equal.} 27. axb5 {[%emt 0:00:13]} Rxg2 {[%emt 0:00:26][%cal Rg2g1]} 28. Kf1 {[%emt 0:00:08] Against Rg1+} Rxh2 {[%emt 0:00:31][%cal Rh2h1]} 29. Kg1 {[%emt 0:00:20] Against Rh1+} Rhg2+ {[%emt 0:05:39]} 30. Kh1 {[%emt 0:01:01]} Rh2+ {[%emt 0:02:35]} 31. Kg1 {[%emt 0:00:10]} Rhg2+ {[%emt 0:00:10]} 32. Kh1 {[%emt 0:00:05] Weighted Error Value: White=0.18 (very precise) /Black=0.16 (very precise)} 1/2-1/2

[Event "1st Serbian League 2022"]
[Site "Vrnjacka Banja"]
[Date "2022.09.27"]
[Round "8.8"]
[White "Ivanovic, Marko"]
[Black "Sedlak, Nikola"]
[Result "0-1"]
[ECO "C60"]
[WhiteElo "2265"]
[BlackElo "2466"]
[Annotator "TA"]
[PlyCount "72"]
[EventDate "2022.09.20"]
[EventType "team-tourn"]
[EventCountry "SRB"]
[SourceTitle "playchess.com"]
[Source "ChessBase"]
[SourceQuality "1"]
[TimeControl "40/5400+30:1800+30"]

{[%evp 16,72,25,30,30,18,37,0,0,-7,14,-7,2,-60,-40,-71,-66,-95,-62,-124,-123,-169,-177,-171,-162,-220,-218,-234,-232,-265,-274,-277,-272,-258,-199,-195,-202,-191,-187,-294,-255,-402,-406,-380,-364,-592,-566,-592,-552,-694,-694,-722,-698,-1521,-1057,-884,-768,-29976,-5396]} 1. e4 {[%emt 0:08:54]} e5 {[%emt 0:00:14]} 2. Nf3 {[%emt 0:00:05]} Nc6 {[%emt 0:00:18]} 3. Bb5 {[%emt 0:00:06]} a6 {[%emt 0:00:42]} 4. Ba4 {[%emt 0:00:05]} d6 {[%emt 0:00:54]} 5. c3 {[%emt 0:00:06]} Bd7 {[%emt 0:00:58]} 6. d4 {[%emt 0:00:05]} Nf6 {[%emt 0:00:29]} 7. Bc2 {[%emt 0:00:18]} g6 {[%emt 0:00:38]} 8. O-O {[%emt 0:03:43]} Bg7 {[%emt 0:00:05]} 9. h3 {[%emt 0:02:31]} O-O {[%emt 0:00:12] C60: Ruy Lopez: Unusual Black 3rd moves and 3...g6.} 10. Re1 {[%emt 0:00:10]} Re8 {[%emt 0:00:55] [#]} 11. dxe5 $146 {[%emt 0:05:05]} ({Predecessor:} 11. Nbd2 a5 12. Nf1 a4 13. Ng3 b5 14. Be3 Qe7 15. Qd2 Reb8 16. d5 Na5 17. b3 {½-½ (87) Caruana,F (2792)-Sjugirov,S (2680) Chess.com INT 2022}) 11... Nxe5 {[%emt 0:01:10] The position is equal.} 12. Nxe5 {[%emt 0:01:14]} Rxe5 {[%emt 0:03:46]} 13. Bf4 {[%emt 0:06:33]} Re8 {[%emt 0:00:28]} 14. c4 {[%emt 0:22:09]} (14. Nd2 $11) 14... b5 {[%emt 0:10:23]} 15. cxb5 {[%emt 0:06:15]} axb5 {[%emt 0:02:43][%cal Ba6b5,Bb5b4][%mdl 32]} 16. Bd3 {[%emt 0:01:15]} Bc6 {[%emt 0:12:29]} (16... Nh5 {looks sharper.} 17. Bc1 Qh4 18. Nc3 Be5) 17. Qc2 {[%emt 0:02:55] [#]} ({Better is} 17. Qc1 $15 Bxe4 18. Bxb5) 17... Bxe4 $1 $17 {[%emt 0:00:56]} 18. Bxe4 {[%emt 0:02:37]} (18. Rxe4 $2 Nxe4 19. Nd2 (19. Bxe4 $2 Rxe4 20. Qxe4 Bxb2 $19) 19... Nxd2 20. Bxd2 Qd7 $19) (18. Nc3 $17 {was necessary.} Bxd3 19. Qxd3) 18... Rxe4 $19 {[%emt 0:00:33]} 19. Rxe4 {[%emt 0:01:15]} Nxe4 {[%emt 0:00:05][%cal Bf6e4,Be4c5,Bc5e6][%mdl 32]} 20. Na3 {[%emt 0:01:30]} ({But not} 20. Qxe4 $2 Bxb2 21. Nc3 (21. Bg5 $2 Qe8 $19) 21... Bxa1 $19) (20. Be3 $142) 20... b4 {[%emt 0:06:37]} 21. Nb5 {[%emt 0:00:10]} Nc5 {[%emt 0:00:25][%cal Ob4b3] [#] And now ...b3! would win.} 22. Rd1 {[%emt 0:01:08][%cal Ob5c7]} Ne6 {[%emt 0:00:38]} 23. Qc4 {[%emt 0:00:17]} Qb8 {[%emt 0:17:46]} ({Don't go for} 23... Bxb2 $2 24. Be3 $19) 24. Be3 {[%emt 0:03:29]} Ra5 {[%emt 0:04:05]} ({Don't blunder} 24... Bxb2 $2 25. Rb1 Be5 26. Rxb4 $19) 25. Nd4 {[%emt 0:00:06]} Bxd4 {[%emt 0:06:53]} 26. Bxd4 {[%emt 0:00:14]} Qb5 $36 {[%emt 0:00:55][%mdl 2048] Black has strong initiative.} 27. Qc1 {[%emt 0:00:29]} (27. Qb3 $142) 27... Rxa2 {[%emt 0:00:55][%cal Ba5a2,Ba2b2,Bb2b1][%mdl 32]} 28. Be3 {[%emt 0:02:13]} (28. Bf6 $142) 28... Qe5 {[%emt 0:02:07]} 29. Qc6 {[%emt 0:01:54]} Kg7 {[%emt 0:03:32] Prevents Bh6+.} 30. h4 $2 {[%emt 0:02:01]} (30. b3) 30... Rxb2 {[%emt 0:02:30]} 31. Qc1 {[%emt 0:00:06]} h5 {[%emt 0:00:57]} 32. Qc4 {[%emt 0:02:25]} Qc3 {[%emt 0:02:35]} 33. Qb5 {[%emt 0:00:23]} Qc2 {[%emt 0:01:17]} 34. Rd4 {[%emt 0:00:24]} Rb1+ {[%emt 0:01:43]} 35. Kh2 {[%emt 0:00:05]} Qf5 {[%emt 0:01:40]} 36. Rd5 {[%emt 0:00:32]} Qe4 {[%emt 0:00:18] White did not feel at home in the position after the opening.  Weighted Error Value: White=0.90/Black=0.45} (36... Qg4 $142 37. Rd4 Nxd4 38. Qg5 Qxg5 39. Bxg5 Rd1 40. f3 b3 41. Kh3 b2 42. g4 b1=Q 43. Bf6+ Kxf6 44. Kg3 Rh1 45. Kf4 Qd3 46. g5+ Kg7 47. Kg3 Qxf3#) 0-1

[Event "1st Serbian League 2022"]
[Site "Vrnjacka Banja"]
[Date "2022.09.27"]
[Round "8.9"]
[White "Popovic, Dusan"]
[Black "Sarenac, Ivan"]
[Result "1-0"]
[ECO "C78"]
[WhiteElo "2486"]
[BlackElo "2402"]
[Annotator "TA"]
[PlyCount "71"]
[EventDate "2022.09.20"]
[EventType "team-tourn"]
[EventCountry "SRB"]
[SourceTitle "playchess.com"]
[Source "ChessBase"]
[SourceQuality "1"]
[TimeControl "40/5400+30:1800+30"]

{[%evp 13,71,33,40,50,34,28,42,11,8,10,68,45,54,61,41,21,66,48,81,71,86,104,137,134,149,140,129,114,139,137,151,67,65,31,31,27,68,48,158,28,22,22,91,93,280,184,151,0,264,295,937,962,954,955,922,907,897,896,2314,966]} 1. e4 {[%emt 0:00:11]} e5 {[%emt 0:00:10]} 2. Nf3 {[%emt 0:00:22]} Nc6 {[%emt 0:00:14]} 3. Bb5 {[%emt 0:00:10]} a6 {[%emt 0:00:13]} 4. Ba4 {[%emt 0:00:09]} Nf6 {[%emt 0:00:16]} 5. O-O {[%emt 0:00:31]} Bc5 {[%emt 0:00:44]} 6. c3 {[%emt 0:01:21]} O-O {[%emt 0:00:21]} 7. d4 {[%emt 0:01:47]} Ba7 {[%emt 0:00:20]} 8. Bg5 {[%emt 0:01:00] C78: Ruy Lopez: Archangelsk and Möller Defences.} h6 {[%emt 0:00:17]} 9. Bh4 {[%emt 0:00:17]} exd4 {[%emt 0:00:17]} 10. Re1 {[%emt 0:02:44] Hoping for e5. White is slightly better.} d6 {[%emt 0:20:59]} 11. Bxc6 {[%emt 0:01:33]} bxc6 {[%emt 0:00:06]} (11... dxc3 $11 12. Nxc3 (12. Bxf6 Qxf6 13. Nxc3 bxc6 $17) 12... bxc6) 12. Nxd4 $14 {[%emt 0:01:45]} Bd7 {[%emt 0:06:21][%cal Bc8d7,Bd7c6,Bc6d5][%mdl 32]} 13. Nd2 {[%emt 0:01:51]} Re8 {[%emt 0:11:14]} 14. f4 {[%emt 0:19:58][%cal Bf2f4,Bf4f5][%mdl 32]} c5 {[%emt 0:12:58]} 15. N4f3 {[%emt 0:03:29] [#]} Bc6 $146 {[%emt 0:29:32]} ({Predecessor:} 15... c4+ 16. Kh1 Ng4 17. Re2 Qc8 18. Nxc4 Bb5 19. b3 f5 20. Nd4 fxe4 21. h3 e3 {½-½ (34) Chesakov,L (2373)-Wuerschner,M (2431) ICCF email 2017}) 16. Kh1 {[%emt 0:17:45]} Qe7 {[%emt 0:07:44]} 17. Qc2 {[%emt 0:16:10] Black must now prevent e5.} Qe6 {[%emt 0:00:16][%cal Rf6e4]} 18. f5 $1 {[%emt 0:02:09]} Qe7 {[%emt 0:00:04]} 19. e5 $1 {[%emt 0:07:35]} dxe5 {[%emt 0:00:53]} 20. Nxe5 {[%emt 0:00:08]} Bd5 {[%emt 0:02:47]} 21. Ng4 {[%emt 0:12:27] Pair of Knights!} Qd6 {[%emt 0:00:16]} 22. Bxf6 {[%emt 0:01:19]} (22. Nxf6+ $16 gxf6 23. c4) 22... gxf6 {[%emt 0:00:59]} 23. Ne4 {[%emt 0:00:40]} ({Inferior is} 23. Nxh6+ Kg7 24. c4 Bc6 $19) 23... Bxe4 {[%emt 0:01:06]} 24. Rxe4 {[%emt 0:00:05]} h5 {[%emt 0:00:46]} 25. Rae1 {[%emt 0:02:39]} (25. Nf2 $5 {[%cal Ra1e1]}) 25... Kf8 {[%emt 0:01:32]} ({Better is} 25... Rxe4 $14 26. Qxe4 Rd8) 26. Qe2 {[%emt 0:04:34]} (26. Nf2 $1 $16 {Strongly threatening Qc1.} Qf4 27. Rxe8+ (27. Rxf4 $2 Rxe1#) 27... Rxe8 28. Rxe8+ Kxe8 29. Qe4+ Qxe4 30. Nxe4) 26... Rxe4 $11 {[%emt 0:01:07]} 27. Qxe4 {[%emt 0:00:02]} Rb8 {[%emt 0:02:28] [#]} (27... Rd8 $11 28. Ne3 Qd3 29. Qxd3 Rxd3) 28. Ne3 $1 $36 {[%emt 0:00:29][%mdl 2048] White is on the roll.} Qd7 $2 {[%emt 0:00:00]} (28... c4 $16) 29. Nd5 {[%emt 0:00:48]} Qd6 {[%emt 0:00:28] [#]} 30. Ne3 {[%emt 0:00:50] White is much more active.} (30. Qh4 $1 $16 Re8 31. Rxe8+ Kxe8 32. c4 (32. Nxf6+ Kf8 $16)) 30... Qd7 $1 $18 {[%emt 0:00:29]} 31. Qf3 {[%emt 0:00:21]} Rxb2 $2 {[%emt 0:00:28]} (31... Kg7 32. Qxh5 Rh8 33. Qg4+ Kf8) 32. Qxh5 {[%emt 0:00:29] White threatens Ng4 and mate. White is clearly winning.} ({Not} 32. Nc4 Rb8 $16) 32... Kg7 {[%emt 0:00:24]} 33. Qg4+ {[%emt 0:00:19]} Kf8 {[%emt 0:00:04]} 34. Qh4 {[%emt 0:00:14] Threatening mate with Ng4.} Qd2 {[%emt 0:00:57] [#]} 35. Rd1 $1 {[%emt 0:00:56]} Rb1 {[%emt 0:00:37]} (35... Qxd1+ 36. Nxd1) 36. Qh6+ {[%emt 0:00:18] Weighted Error Value: White=0.31/Black=0.29 (precise)} (36. Rxb1 $142 c4 37. Rd1 Bxe3 38. Rxd2 Bxd2 39. Qxf6) 1-0